[Event "4NCL Div 1 2018-19"]
[Site "Daventry"]
[Date "2019.01.12"]
[Round "3"]
[White "Chow, Samuel"]
[Black "Kett, Tim"]
[Result "1-0"]
[ECO "A29"]
[WhiteElo "2331"]
[BlackElo "2209"]
[Annotator "NA"]
[PlyCount "77"]
[EventDate "2019.01.12"]
[EventCountry "GBR"]
[SourceTitle "playchess.com"]
[Source "ChessBase"]
[SourceQuality "1"]
[TimeControl "40"]

1. Nf3 {[%emt 0:00:00]} Nf6 {[%emt 0:00:00]} 2. g3 {[%emt 0:00:00]} g6 {[%emt 0:00:00]} 3. Bg2 {[%emt 0:00:00]} Bg7 {[%emt 0:00:00]} 4. O-O {[%emt 0:00:00]} O-O {[%emt 0:00:00]} 5. c4 {[%emt 0:00:00]} d6 {[%emt 0:00:00]} 6. Nc3 {[%emt 0:00:00]} Nc6 {[%emt 0:00:00]} 7. Rb1 {[%emt 0:00:00]} e5 {[%emt 0:00:00]} 8. b4 {[%emt 0:00:00]} a6 {[%emt 0:00:00]} 9. a4 {[%emt 0:00:00]} Nd4 {[%emt 0:00:00]} 10. b5 {[%emt 0:00:00]} Nxf3+ {[%emt 0:00:00]} 11. Bxf3 {[%emt 0:00:00]} axb5 {[%emt 0:00:00]} 12. axb5 {[%emt 0:00:00]} Bh3 {[%emt 0:00:00]} 13. Re1 {[%emt 0:00:00]} Rb8 {[%emt 0:00:00]} 14. d3 {[%emt 0:00:00]} h6 {[%emt 0:00:00]} 15. Qb3 {[%emt 0:00:00]} Kh7 {[%emt 0:00:00]} 16. Be3 {[%emt 0:00:00]} b6 {[%emt 0:00:00]} 17. Na2 {[%emt 0:00:00]} Ng4 {[%emt 0:00:00]} 18. Bd2 {[%emt 0:00:00]} f5 {[%emt 0:00:00]} 19. Nb4 {[%emt 0:00:00]} Qf6 {[%emt 0:00:00]} 20. Qa3 {[%emt 0:00:00]} f4 {[%emt 0:00:00]} 21. Nd5 {[%emt 0:00:00]} Qd8 {[%emt 0:00:00]} 22. Qa7 {[%emt 0:00:00]} Rf7 {[%emt 0:00:00]} 23. Be4 {[%emt 0:00:00]} fxg3 {[%emt 0:00:00]} 24. fxg3 {[%emt 0:00:00]} Nf2 {[%emt 0:00:00]} 25. Be3 {[%emt 0:00:00]} Nxe4 {[%emt 0:00:00]} 26. dxe4 {[%emt 0:00:00]} Qc8 {[%emt 0:00:00]} 27. Nxb6 {[%emt 0:00:00]} Rxb6 {[%emt 0:00:00]} 28. Bxb6 {[%emt 0:00:00]} Qg4 {[%emt 0:00:00]} 29. Qb7 {[%emt 0:00:00]} h5 {[%emt 0:00:00]} 30. Bf2 {[%emt 0:00:00]} Bh6 {[%emt 0:00:00]} 31. Rb3 {[%emt 0:00:00]} Bd2 {[%emt 0:00:00]} 32. Qd5 {[%emt 0:00:00]} Rxf2 {[%emt 0:00:00]} 33. Kxf2 {[%emt 0:00:00]} Bxe1+ {[%emt 0:00:00]} 34. Kxe1 {[%emt 0:00:00]} Bg2 {[%emt 0:00:00]} 35. b6 {[%emt 0:00:00]} cxb6 {[%emt 0:00:00]} 36. Rxb6 {[%emt 0:01:05]} Bxe4 {[%emt 0:00:00]} 37. Qf7+ {[%emt 0:00:00]} Kh6 {[%emt 0:00:00]} 38. Qf8+ {[%emt 0:00:00]} Kh7 {[%emt 0:00:00]} 39. Rb8 {[%emt 0:00:00]} 1-0

[Event "4NCL Div 1 2018-19"]
[Site "Daventry"]
[Date "2019.01.12"]
[Round "3"]
[White "Taylor, Martin R"]
[Black "Dargan, Paul A G"]
[Result "1-0"]
[ECO "E36"]
[WhiteElo "2328"]
[BlackElo "2123"]
[Annotator "NA"]
[PlyCount "83"]
[EventDate "2019.01.12"]
[EventCountry "GBR"]
[SourceTitle "playchess.com"]
[Source "ChessBase"]
[SourceQuality "1"]
[TimeControl "40"]

1. d4 {[%emt 0:00:00]} Nf6 {[%emt 0:00:00]} 2. c4 {[%emt 0:00:00]} e6 {[%emt 0:00:00]} 3. Nc3 {[%emt 0:00:00]} Bb4 {[%emt 0:00:00]} 4. Qc2 {[%emt 0:00:00]} d5 {[%emt 0:00:00]} 5. a3 {[%emt 0:00:00]} Bxc3+ {[%emt 0:00:00]} 6. Qxc3 {[%emt 0:00:00]} O-O {[%emt 0:00:00]} 7. Bg5 {[%emt 0:00:00]} dxc4 {[%emt 0:00:00]} 8. Qxc4 {[%emt 0:00:00]} b6 {[%emt 0:00:00]} 9. Rd1 {[%emt 0:00:00]} Ba6 {[%emt 0:00:00]} 10. Qa4 {[%emt 0:00:00]} h6 {[%emt 0:00:00]} 11. Bh4 {[%emt 0:00:00]} Qe7 {[%emt 0:00:00]} 12. Nf3 {[%emt 0:00:00]} Rd8 {[%emt 0:00:00]} 13. e3 {[%emt 0:00:00]} Bxf1 {[%emt 0:00:00]} 14. Rxf1 {[%emt 0:00:00]} c5 {[%emt 0:00:00]} 15. dxc5 {[%emt 0:00:00]} Rxd1+ {[%emt 0:00:00]} 16. Qxd1 {[%emt 0:00:00]} Qxc5 {[%emt 0:00:00]} 17. Qd8+ {[%emt 0:00:00]} Kh7 {[%emt 0:00:00]} 18. Bxf6 {[%emt 0:00:00]} gxf6 {[%emt 0:00:00]} 19. Qxf6 {[%emt 0:00:00]} Nc6 {[%emt 0:00:00]} 20. Qxf7+ {[%emt 0:00:00]} Kh8 {[%emt 0:00:00]} 21. Qf6+ {[%emt 0:00:00]} Kh7 {[%emt 0:00:00]} 22. Qf7+ {[%emt 0:00:00]} Kh8 {[%emt 0:00:00]} 23. Qf6+ {[%emt 0:00:00]} Kh7 {[%emt 0:00:00]} 24. Qc3 {[%emt 0:00:00]} Qb5 {[%emt 0:00:00]} 25. Nd4 {[%emt 0:00:00]} Nxd4 {[%emt 0:00:00]} 26. exd4 {[%emt 0:00:00]} Qd5 {[%emt 0:00:00]} 27. f3 {[%emt 0:00:00]} Rd8 {[%emt 0:00:00]} 28. Rf2 {[%emt 0:00:00]} Qxd4 {[%emt 0:00:00]} 29. Qxd4 {[%emt 0:00:00]} Rxd4 {[%emt 0:00:00]} 30. Rd2 {[%emt 0:00:00]} Rh4 {[%emt 0:00:00]} 31. h3 {[%emt 0:00:00]} Kg6 {[%emt 0:00:00]} 32. Rd7 {[%emt 0:00:00]} Ra4 {[%emt 0:00:00]} 33. Kd2 {[%emt 0:00:00]} h5 {[%emt 0:00:00]} 34. g4 {[%emt 0:00:00]} b5 {[%emt 0:00:00]} 35. Rb7 {[%emt 0:00:00]} a6 {[%emt 0:00:00]} 36. Ke3 {[%emt 0:00:00]} Kf6 {[%emt 0:00:00]} 37. Rb6 {[%emt 0:00:00]} h4 {[%emt 0:00:00]} 38. f4 {[%emt 0:00:00]} Kf7 {[%emt 0:00:00]} 39. g5 {[%emt 0:00:00]} Rc4 {[%emt 0:00:00]} 40. Rxa6 {[%emt 0:00:00]} Rc1 {[%emt 0:00:00]} 41. Ra7+ {[%emt 0:00:06]} Kg8 {[%emt 0:00:00]} 42. Ke4 {[%emt 0:00:00]} 1-0

[Event "4NCL Div 1 2018-19"]
[Site "Daventry"]
[Date "2019.01.12"]
[Round "3"]
[White "Reimanis, Ritvars"]
[Black "Guichard, Pauline"]
[Result "1-0"]
[ECO "A16"]
[WhiteElo "2316"]
[BlackElo "2382"]
[Annotator "NA"]
[PlyCount "83"]
[EventDate "2019.01.12"]
[EventCountry "GBR"]
[SourceTitle "playchess.com"]
[Source "ChessBase"]
[SourceQuality "1"]
[TimeControl "40"]

1. c4 {[%emt 0:00:00]} Nf6 {[%emt 0:00:00]} 2. Nc3 {[%emt 0:00:00]} g6 {[%emt 0:00:00]} 3. g3 {[%emt 0:00:00]} Bg7 {[%emt 0:00:00]} 4. Bg2 {[%emt 0:00:00]} O-O {[%emt 0:00:00]} 5. d3 {[%emt 0:00:00]} d6 {[%emt 0:00:00]} 6. Rb1 {[%emt 0:00:00]} c6 {[%emt 0:00:00]} 7. e4 {[%emt 0:00:00]} a6 {[%emt 0:00:00]} 8. Nge2 {[%emt 0:00:00]} b5 {[%emt 0:00:00]} 9. b4 {[%emt 0:00:00]} e5 {[%emt 0:00:00]} 10. a4 {[%emt 0:00:00]} Qe8 {[%emt 0:00:00]} 11. O-O {[%emt 0:00:00]} Be6 {[%emt 0:00:00]} 12. f4 {[%emt 0:00:00]} bxc4 {[%emt 0:00:00]} 13. f5 {[%emt 0:00:00]} gxf5 {[%emt 0:00:00]} 14. exf5 {[%emt 0:00:00]} cxd3 {[%emt 0:00:00]} 15. Qxd3 {[%emt 0:00:00]} Bd5 {[%emt 0:00:00]} 16. Nxd5 {[%emt 0:00:00]} cxd5 {[%emt 0:00:00]} 17. g4 {[%emt 0:00:00]} h6 {[%emt 0:00:00]} 18. Qh3 {[%emt 0:00:00]} Qe7 {[%emt 0:00:00]} 19. Kh1 {[%emt 0:00:00]} Rc8 {[%emt 0:00:00]} 20. g5 {[%emt 0:00:00]} hxg5 {[%emt 0:00:00]} 21. Bxg5 {[%emt 0:00:00]} Qb7 {[%emt 0:00:00]} 22. Bxf6 {[%emt 0:00:00]} Bxf6 {[%emt 0:00:00]} 23. Qh6 {[%emt 0:00:00]} Bg7 {[%emt 0:00:00]} 24. Qd2 {[%emt 0:00:00]} Qe7 {[%emt 0:00:00]} 25. f6 {[%emt 0:00:00]} Bxf6 {[%emt 0:00:00]} 26. Bxd5 {[%emt 0:00:00]} Nd7 {[%emt 0:00:00]} 27. Qh6 {[%emt 0:00:00]} Bg7 {[%emt 0:00:00]} 28. Rxf7 {[%emt 0:00:00]} Qxf7 {[%emt 0:00:00]} 29. Bxf7+ {[%emt 0:00:00]} Kxf7 {[%emt 0:00:00]} 30. Qxd6 {[%emt 0:00:00]} Nf6 {[%emt 0:00:00]} 31. Ng3 {[%emt 0:00:00]} Rc2 {[%emt 0:00:00]} 32. Qd3 {[%emt 0:00:00]} Rac8 {[%emt 0:00:00]} 33. Rf1 {[%emt 0:00:00]} Kg8 {[%emt 0:00:00]} 34. Qxa6 {[%emt 0:00:00]} R8c6 {[%emt 0:00:00]} 35. Qa8+ {[%emt 0:00:00]} Rc8 {[%emt 0:00:00]} 36. Qb7 {[%emt 0:00:00]} R8c7 {[%emt 0:00:00]} 37. Qa8+ {[%emt 0:00:00]} Rc8 {[%emt 0:00:00]} 38. Qf3 {[%emt 0:00:00]} Rb2 {[%emt 0:00:00]} 39. Nf5 {[%emt 0:00:00]} Rcc2 {[%emt 0:00:00]} 40. Nxg7 {[%emt 0:00:00]} Rxh2+ {[%emt 0:00:00]} 41. Kg1 {[%emt 0:00:00]} Rh6 {[%emt 0:00:00]} 42. Nf5 {[%emt 0:00:00]} 1-0

[Event "4NCL Div 1 2018-19"]
[Site "Daventry"]
[Date "2019.01.12"]
[Round "3"]
[White "Webb, Laurence E"]
[Black "De Verdier, Michael"]
[Result "1-0"]
[ECO "D37"]
[WhiteElo "2311"]
[BlackElo "2277"]
[Annotator "NA"]
[PlyCount "83"]
[EventDate "2019.01.12"]
[EventCountry "GBR"]
[SourceTitle "playchess.com"]
[Source "ChessBase"]
[SourceQuality "1"]
[TimeControl "40"]

1. d4 {[%emt 0:00:00]} d5 {[%emt 0:00:27]} 2. c4 {[%emt 0:00:00]} e6 {[%emt 0:00:00]} 3. Nc3 {[%emt 0:00:00]} a6 {[%emt 0:00:00]} 4. cxd5 {[%emt 0:00:00]} exd5 {[%emt 0:00:00]} 5. Nf3 {[%emt 0:00:00]} Nf6 {[%emt 0:00:00]} 6. Bg5 {[%emt 0:00:00]} Be6 {[%emt 0:00:00]} 7. e3 {[%emt 0:00:00]} Nbd7 {[%emt 0:00:00]} 8. Bd3 {[%emt 0:00:00]} Bd6 {[%emt 0:00:00]} 9. O-O {[%emt 0:00:00]} c6 {[%emt 0:00:00]} 10. h3 {[%emt 0:00:00]} Qc7 {[%emt 0:00:00]} 11. Qd2 {[%emt 0:00:00]} O-O {[%emt 0:00:00]} 12. Bf4 {[%emt 0:00:00]} h6 {[%emt 0:00:00]} 13. a3 {[%emt 0:00:00]} Rfe8 {[%emt 0:00:00]} 14. Bxd6 {[%emt 0:00:00]} Qxd6 {[%emt 0:00:00]} 15. b4 {[%emt 0:00:00]} b5 {[%emt 0:00:00]} 16. Rfc1 {[%emt 0:00:00]} Nb6 {[%emt 0:00:00]} 17. Ne2 {[%emt 0:00:00]} Nc4 {[%emt 0:00:00]} 18. Qc3 {[%emt 0:00:00]} Ne4 {[%emt 0:00:00]} 19. Bxe4 {[%emt 0:00:00]} dxe4 {[%emt 0:00:00]} 20. Ne5 {[%emt 0:00:00]} a5 {[%emt 0:00:00]} 21. Nf4 {[%emt 0:00:00]} axb4 {[%emt 0:00:00]} 22. axb4 {[%emt 0:00:00]} Bd5 {[%emt 0:00:00]} 23. Nxc4 {[%emt 0:00:00]} Bxc4 {[%emt 0:00:00]} 24. Qb2 {[%emt 0:00:00]} Kh7 {[%emt 0:00:00]} 25. Ra3 {[%emt 0:00:00]} Rxa3 {[%emt 0:00:00]} 26. Qxa3 {[%emt 0:00:00]} Kg8 {[%emt 0:00:00]} 27. Ra1 {[%emt 0:00:00]} Qe7 {[%emt 0:00:00]} 28. Qa7 {[%emt 0:00:00]} Qxb4 {[%emt 0:00:00]} 29. Qd7 {[%emt 0:00:00]} Rb8 {[%emt 0:00:00]} 30. Qxc6 {[%emt 0:00:00]} Qc3 {[%emt 0:00:00]} 31. Ra8 {[%emt 0:00:00]} Qe1+ {[%emt 0:00:00]} 32. Kh2 {[%emt 0:00:00]} Rxa8 {[%emt 0:00:00]} 33. Qxa8+ {[%emt 0:00:00]} Kh7 {[%emt 0:00:00]} 34. Qxe4+ {[%emt 0:00:00]} Kg8 {[%emt 0:00:00]} 35. d5 {[%emt 0:00:00]} Qd2 {[%emt 0:00:00]} 36. Qe5 {[%emt 0:00:00]} g6 {[%emt 0:00:00]} 37. d6 {[%emt 0:00:00]} b4 {[%emt 0:00:00]} 38. Qe8+ {[%emt 0:00:00]} Kh7 {[%emt 0:00:00]} 39. d7 {[%emt 0:00:00]} b3 {[%emt 0:00:00]} 40. d8=Q {[%emt 0:00:00]} Qxd8 {[%emt 0:00:00]} 41. Qxd8 {[%emt 0:00:00]} b2 {[%emt 0:00:00]} 42. Qb6 {[%emt 0:00:00]} 1-0

[Event "4NCL Div 1 2018-19"]
[Site "Daventry"]
[Date "2019.01.12"]
[Round "3"]
[White "Golding, Alex"]
[Black "Kolbus, Dietmar"]
[Result "1/2-1/2"]
[ECO "B01"]
[WhiteElo "2263"]
[BlackElo "2305"]
[Annotator "NA"]
[PlyCount "46"]
[EventDate "2019.01.12"]
[EventCountry "GBR"]
[SourceTitle "playchess.com"]
[Source "ChessBase"]
[SourceQuality "1"]
[TimeControl "40"]

1. e4 {[%emt 0:00:00]} d5 2. exd5 {[%emt 0:00:00]} Qxd5 {[%emt 0:00:00]} 3. Nc3 {[%emt 0:00:00]} Qd6 {[%emt 0:00:00]} 4. d4 {[%emt 0:00:00]} Nf6 {[%emt 0:00:00]} 5. Bc4 {[%emt 0:00:00]} c6 {[%emt 0:00:00]} 6. Nge2 {[%emt 0:00:00]} Be6 {[%emt 0:00:00]} 7. Bd3 {[%emt 0:00:00]} Qd7 {[%emt 0:00:00]} 8. Nf4 {[%emt 0:00:00]} Bf5 {[%emt 0:00:00]} 9. Bc4 {[%emt 0:00:00]} e6 {[%emt 0:00:00]} 10. Nce2 {[%emt 0:00:00]} Nd5 {[%emt 0:00:00]} 11. O-O {[%emt 0:00:00]} Bd6 {[%emt 0:00:00]} 12. Nh5 {[%emt 0:00:00]} O-O 13. Neg3 {[%emt 0:00:00]} Bxg3 {[%emt 0:00:00]} 14. Nxg3 {[%emt 0:00:00]} Bg6 {[%emt 0:00:00]} 15. Re1 {[%emt 0:00:00]} Qd8 {[%emt 0:00:00]} 16. c3 {[%emt 0:00:00]} Nd7 {[%emt 0:00:00]} 17. Qf3 {[%emt 0:00:00]} Qh4 {[%emt 0:00:00]} 18. Bd2 {[%emt 0:00:00]} a5 {[%emt 0:00:00]} 19. a4 {[%emt 0:00:00]} Rfe8 {[%emt 0:00:00]} 20. Bd3 {[%emt 0:00:00]} Bxd3 {[%emt 0:00:00]} 21. Qxd3 {[%emt 0:00:00]} N5f6 {[%emt 0:00:00]} 22. h3 {[%emt 0:00:00]} Rec8 {[%emt 0:00:00]} 23. Be3 {[%emt 0:00:00]} Nd5 {[%emt 0:00:00]} 1/2-1/2

[Event "4NCL Div 1 2018-19"]
[Site "Daventry"]
[Date "2019.01.12"]
[Round "3"]
[White "Townsend, M Paul"]
[Black "Jones, Steven A"]
[Result "0-1"]
[ECO "E01"]
[WhiteElo "2250"]
[BlackElo "2142"]
[Annotator "NA"]
[PlyCount "80"]
[EventDate "2019.01.12"]
[EventCountry "GBR"]
[SourceTitle "playchess.com"]
[Source "ChessBase"]
[SourceQuality "1"]
[TimeControl "40"]

1. Nf3 {[%emt 0:00:00]} Nf6 {[%emt 0:00:00]} 2. c4 {[%emt 0:00:00]} c6 {[%emt 0:00:00]} 3. g3 {[%emt 0:00:00]} d5 {[%emt 0:00:00]} 4. Bg2 {[%emt 0:00:00]} e6 {[%emt 0:00:00]} 5. O-O {[%emt 0:00:00]} Bd6 {[%emt 0:00:00]} 6. d4 {[%emt 0:00:00]} Nbd7 {[%emt 0:00:00]} 7. Nc3 {[%emt 0:00:00]} O-O {[%emt 0:00:00]} 8. Nd2 {[%emt 0:00:00]} Bb4 {[%emt 0:00:00]} 9. e4 {[%emt 0:00:00]} Bxc3 {[%emt 0:00:00]} 10. bxc3 {[%emt 0:00:00]} dxe4 {[%emt 0:00:00]} 11. Nxe4 {[%emt 0:00:00]} Nxe4 {[%emt 0:00:00]} 12. Bxe4 {[%emt 0:00:00]} Qa5 {[%emt 0:00:00]} 13. Qc2 {[%emt 0:00:00]} Nf6 {[%emt 0:00:00]} 14. Bg2 {[%emt 0:00:00]} e5 {[%emt 0:00:00]} 15. Bg5 {[%emt 0:00:00]} exd4 {[%emt 0:00:00]} 16. Bxf6 {[%emt 0:00:00]} d3 {[%emt 0:00:00]} 17. Qxd3 {[%emt 0:00:00]} gxf6 {[%emt 0:00:00]} 18. Rfe1 {[%emt 0:00:00]} Be6 {[%emt 0:00:00]} 19. Qd4 {[%emt 0:00:00]} Kg7 {[%emt 0:00:00]} 20. Re4 {[%emt 0:00:00]} Rfd8 {[%emt 0:00:00]} 21. Qe3 {[%emt 0:00:00]} Qb6 {[%emt 0:00:00]} 22. Qf3 {[%emt 0:00:00]} Qc5 {[%emt 0:00:00]} 23. Rae1 {[%emt 0:00:00]} Rd2 {[%emt 0:00:00]} 24. Rf4 {[%emt 0:00:00]} Rad8 {[%emt 0:00:00]} 25. Rxf6 {[%emt 0:00:00]} Qxc4 {[%emt 0:00:00]} 26. Rf4 {[%emt 0:00:00]} Qd3 {[%emt 0:00:00]} 27. Qh5 {[%emt 0:00:00]} Rd1 {[%emt 0:00:00]} 28. Qe5+ {[%emt 0:00:00]} Kg8 {[%emt 0:00:00]} 29. Rfe4 {[%emt 0:00:00]} Rd5 {[%emt 0:00:00]} 30. Qb8+ {[%emt 0:00:00]} Kg7 {[%emt 0:00:00]} 31. Bf1 {[%emt 0:00:00]} Qxe4 {[%emt 0:00:00]} 32. Rxe4 {[%emt 0:00:00]} Bh3 {[%emt 0:00:00]} 33. Rg4+ {[%emt 0:00:00]} Bxg4 {[%emt 0:00:00]} 34. Kg2 {[%emt 0:00:00]} Rxf1 {[%emt 0:00:00]} 35. h3 {[%emt 0:00:00]} Be2 {[%emt 0:00:00]} 36. Qf4 {[%emt 0:00:05]} Rfd1 {[%emt 0:00:00]} 37. g4 {[%emt 0:00:00]} Bf1+ {[%emt 0:00:00]} 38. Kg3 {[%emt 0:00:00]} R1d3+ {[%emt 0:00:00]} 39. f3 {[%emt 0:00:00]} Be2 {[%emt 0:00:00]} 40. c4 {[%emt 0:00:00]} Rxf3+ {[%emt 0:00:00]} 0-1

[Event "4NCL Div 1 2018-19"]
[Site "Daventry"]
[Date "2019.01.12"]
[Round "3"]
[White "Connell, Blair N"]
[Black "Holland, James P"]
[Result "1/2-1/2"]
[ECO "A45"]
[WhiteElo "2246"]
[BlackElo "2260"]
[Annotator "NA"]
[PlyCount "37"]
[EventDate "2019.01.12"]
[EventCountry "GBR"]
[SourceTitle "playchess.com"]
[Source "ChessBase"]
[SourceQuality "1"]
[TimeControl "40"]

1. d4 {[%emt 0:00:00]} Nf6 {[%emt 0:00:00]} 2. Nc3 {[%emt 0:00:00]} g6 {[%emt 0:00:00]} 3. Bf4 {[%emt 0:00:00]} c5 {[%emt 0:00:00]} 4. e3 {[%emt 0:00:00]} Bg7 {[%emt 0:00:00]} 5. Qd2 {[%emt 0:00:00]} O-O {[%emt 0:00:00]} 6. dxc5 {[%emt 0:00:00]} Qa5 {[%emt 0:00:00]} 7. Ne4 {[%emt 0:00:00]} Qa4 {[%emt 0:00:00]} 8. Nxf6+ {[%emt 0:00:00]} Bxf6 {[%emt 0:00:00]} 9. c3 {[%emt 0:00:00]} Na6 {[%emt 0:00:00]} 10. Bxa6 {[%emt 0:00:00]} Qxa6 {[%emt 0:00:00]} 11. e4 {[%emt 0:00:00]} b6 {[%emt 0:00:00]} 12. cxb6 {[%emt 0:00:00]} axb6 {[%emt 0:00:00]} 13. e5 {[%emt 0:00:00]} Bg7 {[%emt 0:00:00]} 14. Nf3 {[%emt 0:00:00]} Bb7 {[%emt 0:00:00]} 15. b3 {[%emt 0:00:00]} f6 {[%emt 0:00:00]} 16. Qxd7 {[%emt 0:00:00]} fxe5 {[%emt 0:00:00]} 17. Qe6+ {[%emt 0:00:00]} Kh8 {[%emt 0:00:00]} 18. Bxe5 {[%emt 0:00:00]} Bxf3 {[%emt 0:00:00]} 19. Kd2 {[%emt 0:00:44]} 1/2-1/2

[Event "4NCL Div 1 2018-19"]
[Site "Daventry"]
[Date "2019.01.12"]
[Round "3"]
[White "Head, Louise"]
[Black "Eggleston, David J"]
[Result "0-1"]
[ECO "D85"]
[WhiteElo "2237"]
[BlackElo "2408"]
[Annotator "NA"]
[PlyCount "128"]
[EventDate "2019.01.12"]
[EventCountry "GBR"]
[SourceTitle "playchess.com"]
[Source "ChessBase"]
[SourceQuality "1"]
[TimeControl "40"]

1. d4 {[%emt 0:00:00]} Nf6 {[%emt 0:00:00]} 2. c4 {[%emt 0:00:00]} g6 {[%emt 0:00:00]} 3. Nc3 {[%emt 0:00:00]} d5 {[%emt 0:00:00]} 4. cxd5 {[%emt 0:00:00]} Nxd5 {[%emt 0:00:00]} 5. Bd2 {[%emt 0:00:00]} Bg7 {[%emt 0:00:00]} 6. e4 {[%emt 0:00:00]} Nb6 {[%emt 0:00:00]} 7. Be3 {[%emt 0:00:00]} O-O {[%emt 0:00:00]} 8. h3 {[%emt 0:00:00]} Nc6 {[%emt 0:00:00]} 9. d5 {[%emt 0:00:00]} Ne5 {[%emt 0:00:00]} 10. Bd4 {[%emt 0:00:00]} c5 {[%emt 0:00:00]} 11. Bxc5 {[%emt 0:00:00]} Nec4 {[%emt 0:00:00]} 12. Bxc4 {[%emt 0:00:00]} Nxc4 {[%emt 0:00:00]} 13. Nge2 {[%emt 0:00:00]} Nxb2 {[%emt 0:00:00]} 14. Qc2 {[%emt 0:00:00]} Nc4 {[%emt 0:00:00]} 15. Bd4 {[%emt 0:00:00]} e5 {[%emt 0:00:00]} 16. Bc5 {[%emt 0:00:00]} Re8 {[%emt 0:00:00]} 17. Qa4 {[%emt 0:00:00]} Na5 {[%emt 0:00:00]} 18. O-O {[%emt 0:00:00]} b6 {[%emt 0:00:00]} 19. Bb4 {[%emt 0:00:00]} Bd7 20. Qd1 {[%emt 0:00:00]} Nc4 {[%emt 0:00:00]} 21. Qd3 {[%emt 0:00:00]} Rc8 {[%emt 0:00:00]} 22. Nd1 {[%emt 0:00:00]} b5 {[%emt 0:00:00]} 23. Bc3 {[%emt 0:00:00]} a5 {[%emt 0:00:00]} 24. Ne3 {[%emt 0:00:00]} Nd6 {[%emt 0:00:00]} 25. a3 {[%emt 0:00:00]} b4 {[%emt 0:00:00]} 26. Bb2 {[%emt 0:00:00]} Bb5 {[%emt 0:00:00]} 27. Qd1 {[%emt 0:00:00]} Nxe4 {[%emt 0:00:00]} 28. axb4 {[%emt 0:00:00]} axb4 {[%emt 0:00:00]} 29. Re1 {[%emt 0:00:00]} Qf6 {[%emt 0:00:00]} 30. Ng4 {[%emt 0:00:00]} Qb6 {[%emt 0:00:00]} 31. Nc1 {[%emt 0:00:00]} Nc3 {[%emt 0:00:00]} 32. Qd2 {[%emt 0:00:00]} Rcd8 {[%emt 0:00:00]} 33. Ne3 {[%emt 0:00:00]} Qd4 {[%emt 0:00:00]} 34. Bxc3 {[%emt 0:00:00]} bxc3 {[%emt 0:00:00]} 35. Qc2 {[%emt 0:00:00]} e4 {[%emt 0:00:00]} 36. Rd1 {[%emt 0:00:00]} Qc5 {[%emt 0:00:00]} 37. Nb3 {[%emt 0:00:00]} Qb4 {[%emt 0:00:00]} 38. Nc1 {[%emt 0:00:00]} Qb2 {[%emt 0:00:00]} 39. Ra5 Bd7 {[%emt 0:00:00]} 40. Ne2 {[%emt 0:00:00]} Ra8 {[%emt 0:00:00]} 41. Rxa8 {[%emt 0:00:00]} Rxa8 {[%emt 0:00:00]} 42. Rb1 {[%emt 0:00:00]} Ra1 {[%emt 0:00:00]} 43. Rxa1 Qxa1+ {[%emt 0:00:00]} 44. Kh2 {[%emt 0:00:00]} f5 {[%emt 0:00:00]} 45. Qb3 {[%emt 0:00:00]} Be5+ {[%emt 0:00:00]} 46. g3 {[%emt 0:00:00]} Qb2 {[%emt 0:00:00]} 47. Qc4 {[%emt 0:00:00]} Qb5 {[%emt 0:00:00]} 48. Qa2 {[%emt 0:00:00]} Qa4 {[%emt 0:00:00]} 49. Qb1 {[%emt 0:00:00]} Kf7 {[%emt 0:00:00]} 50. Kg2 {[%emt 0:00:00]} g5 {[%emt 0:00:00]} 51. Qc1 {[%emt 0:00:00]} f4 {[%emt 0:00:00]} 52. gxf4 {[%emt 0:00:00]} gxf4 {[%emt 0:00:00]} 53. Nxc3 {[%emt 0:00:00]} Bxc3 {[%emt 0:00:00]} 54. Qxc3 {[%emt 0:00:00]} fxe3 {[%emt 0:00:00]} 55. Qxe3 {[%emt 0:00:00]} Qa6 {[%emt 0:00:00]} 56. f3 {[%emt 0:00:00]} exf3+ {[%emt 0:00:00]} 57. Qxf3+ {[%emt 0:00:00]} Qf6 {[%emt 0:00:00]} 58. Qb3 {[%emt 0:00:00]} Qg5+ {[%emt 0:00:00]} 59. Kf2 {[%emt 0:00:00]} Qf4+ {[%emt 0:00:00]} 60. Kg2 {[%emt 0:00:00]} Bf5 {[%emt 0:00:00]} 61. Qb7+ {[%emt 0:00:00]} Kg6 {[%emt 0:00:00]} 62. Qb6+ {[%emt 0:00:00]} Kh5 {[%emt 0:00:00]} 63. d6 {[%emt 0:00:00]} Be4+ {[%emt 0:00:00]} 64. Kg1 {[%emt 0:00:00]} Qg3+ {[%emt 0:00:00]} 0-1

[Event "4NCL Div 1 2018-19"]
[Site "Daventry"]
[Date "2019.01.12"]
[Round "3"]
[White "Jaracz, Barbara"]
[Black "Ciuksyte, Dagne"]
[Result "0-1"]
[ECO "B42"]
[WhiteElo "2230"]
[BlackElo "2303"]
[Annotator "NA"]
[PlyCount "70"]
[EventDate "2019.01.12"]
[EventCountry "GBR"]
[SourceTitle "playchess.com"]
[Source "ChessBase"]
[SourceQuality "1"]
[TimeControl "40"]

1. e4 {[%emt 0:00:00]} c5 {[%emt 0:00:00]} 2. Nf3 {[%emt 0:00:00]} e6 {[%emt 0:00:00]} 3. d4 {[%emt 0:00:00]} cxd4 {[%emt 0:00:00]} 4. Nxd4 {[%emt 0:00:00]} a6 {[%emt 0:00:00]} 5. Bd3 {[%emt 0:00:00]} Nf6 {[%emt 0:00:00]} 6. O-O {[%emt 0:00:00]} d6 {[%emt 0:00:00]} 7. c4 {[%emt 0:00:00]} Be7 {[%emt 0:00:00]} 8. Nc3 {[%emt 0:00:00]} b6 {[%emt 0:00:00]} 9. f4 {[%emt 0:00:00]} Bb7 {[%emt 0:00:00]} 10. Qe2 {[%emt 0:00:00]} O-O {[%emt 0:00:00]} 11. Bd2 {[%emt 0:00:00]} Nbd7 {[%emt 0:00:00]} 12. Kh1 {[%emt 0:00:00]} Qc7 {[%emt 0:00:00]} 13. Rae1 {[%emt 0:00:00]} Rad8 {[%emt 0:00:00]} 14. Nf3 {[%emt 0:00:00]} Nc5 {[%emt 0:00:00]} 15. Bc2 {[%emt 0:00:00]} g6 {[%emt 0:00:00]} 16. Ng5 {[%emt 0:00:00]} Rfe8 {[%emt 0:00:00]} 17. e5 {[%emt 0:00:00]} Nh5 {[%emt 0:00:00]} 18. Nxh7 {[%emt 0:00:00]} Kg7 {[%emt 0:00:00]} 19. f5 {[%emt 0:00:00]} exf5 {[%emt 0:00:00]} 20. Rxf5 {[%emt 0:00:00]} dxe5 {[%emt 0:00:00]} 21. Rxe5 {[%emt 0:00:00]} Ng3+ {[%emt 0:00:00]} 22. hxg3 {[%emt 0:00:00]} Rh8 {[%emt 0:00:00]} 23. Bf4 {[%emt 0:00:00]} Rxh7+ {[%emt 0:00:00]} 24. Kg1 {[%emt 0:00:00]} Bd6 {[%emt 0:00:00]} 25. b4 {[%emt 0:00:00]} Nd7 {[%emt 0:00:00]} 26. Re7 {[%emt 0:00:00]} Bxf4 {[%emt 0:00:00]} 27. Rxf7+ {[%emt 0:00:00]} Kxf7 {[%emt 0:00:00]} 28. Qe7+ {[%emt 0:00:00]} Kg8 {[%emt 0:00:00]} 29. Qe6+ {[%emt 0:00:00]} Kf8 {[%emt 0:00:00]} 30. Rf1 {[%emt 0:00:00]} Rf7 {[%emt 0:00:00]} 31. Bxg6 {[%emt 0:00:00]} Rf6 {[%emt 0:00:00]} 32. Qh3 {[%emt 0:00:03]} Be3+ {[%emt 0:00:00]} 33. Kh2 {[%emt 0:00:00]} Rxf1 {[%emt 0:00:00]} 34. Qh8+ {[%emt 0:00:00]} Ke7 {[%emt 0:00:00]} 35. Qg7+ {[%emt 0:00:00]} Kd6 {[%emt 0:00:00]} 0-1